[Event "Titled Tuesday Blitz January 31 Late 2023"]
[White "Deviprasath, Sharvesh"]
[Black "Slater-Jones, Henry"]
[WhiteFideId "30938228"]
[BlackFideId "3222101"]
[WhiteElo "2296"]
[BlackElo "1826"]
[Result "1-0"]
[Round "08"]
[TimeControl "180+2"]
[Date "2023.01.31"]
[WhiteClock "0:00:04"]
[BlackClock "0:00:21"]

1. e4 {[%clk 0:02:50]}  c5 {[%clk 0:02:59]} 2. Nf3 {[%clk 0:02:48]}  d6 {[%clk 0:02:59]} 3. d4 {[%clk 0:02:49]}  cxd4 {[%clk 0:03:00]} 4. Nxd4 {[%clk 0:02:21]}  Nf6 {[%clk 0:02:59]} 5. Nc3 {[%clk 0:02:22]}  a6 {[%clk 0:02:58]} 6. Bd3 {[%clk 0:02:17]}  e6 {[%clk 0:02:55]} 7. g4 {[%clk 0:02:17]}  Nc6 {[%clk 0:02:50]} 8. Nxc6 {[%clk 0:02:14]}  bxc6 {[%clk 0:02:50]} 9. g5 {[%clk 0:02:15]}  Nd7 {[%clk 0:02:50]} 10. f4 {[%clk 0:02:15]}  Bb7 {[%clk 0:02:47]} 11. f5 {[%clk 0:02:13]}  Ne5 {[%clk 0:02:39]} 12. fxe6 {[%clk 0:02:08]}  fxe6 {[%clk 0:02:40]} 13. O-O {[%clk 0:02:06]}  Be7 {[%clk 0:02:38]} 14. Qh5+ {[%clk 0:02:05]}  g6 {[%clk 0:02:27]} 15. Qh6 {[%clk 0:02:04]}  Bf8 {[%clk 0:02:26]} 16. Qh3 {[%clk 0:02:01]}  Kd7 {[%clk 0:01:50]} 17. Rf6 {[%clk 0:01:51]}  Qe7 {[%clk 0:01:45]} 18. Bf4 {[%clk 0:01:33]}  Nxd3 {[%clk 0:01:40]} 19. cxd3 {[%clk 0:01:26]}  Bg7 {[%clk 0:01:40]} 20. e5 {[%clk 0:01:22]}  Bxf6 {[%clk 0:01:35]} 21. gxf6 {[%clk 0:01:22]}  Qf7 {[%clk 0:01:29]} 22. Ne4 {[%clk 0:00:36]}  g5 {[%clk 0:01:02]} 23. Nxd6 {[%clk 0:00:28]}  Qg6 {[%clk 0:01:00]} 24. Be3 {[%clk 0:00:26]}  Rab8 {[%clk 0:00:48]} 25. Bc5 {[%clk 0:00:24]}  Ba8 {[%clk 0:00:42]} 26. Qg4 {[%clk 0:00:19]}  Rxb2 {[%clk 0:00:38]} 27. Qd4 {[%clk 0:00:14]}  Kc7 {[%clk 0:00:34]} 28. Qxb2 {[%clk 0:00:11]}  Rb8 {[%clk 0:00:27]} 29. Qd4 {[%clk 0:00:12]}  g4 {[%clk 0:00:24]} 30. Nc4 {[%clk 0:00:07]}  g3 {[%clk 0:00:21]} 31. Qd6+ {[%clk 0:00:05]}  Kb7 {[%clk 0:00:21]} 32. Qd7# {[%clk 0:00:04]} 1-0


[Site "https://www.chess.com"]

[Event "Titled Tuesday Blitz January 31 Late 2023"]
[White "Danielyan, Vahe"]
[Black "Curtis, John"]
[WhiteFideId "13304828"]
[BlackFideId "3200256"]
[WhiteElo "2346"]
[BlackElo "2292"]
[Result "1-0"]
[Round "08"]
[TimeControl "180+2"]
[Date "2023.01.31"]
[WhiteClock "0:01:04"]
[BlackClock "0:00:03"]

1. e4 {[%clk 0:03:00]}  e5 {[%clk 0:03:00]} 2. Nf3 {[%clk 0:02:58]}  Nc6 {[%clk 0:03:00]} 3. Bb5 {[%clk 0:02:57]}  a6 {[%clk 0:03:00]} 4. Ba4 {[%clk 0:02:57]}  Nf6 {[%clk 0:02:59]} 5. O-O {[%clk 0:02:57]}  b5 {[%clk 0:02:59]} 6. Bb3 {[%clk 0:02:57]}  Be7 {[%clk 0:02:59]} 7. Re1 {[%clk 0:02:53]}  O-O {[%clk 0:02:59]} 8. d4 {[%clk 0:02:53]}  d6 {[%clk 0:02:54]} 9. c3 {[%clk 0:02:50]}  Bg4 {[%clk 0:02:52]} 10. Be3 {[%clk 0:02:50]}  Na5 {[%clk 0:02:46]} 11. Bc2 {[%clk 0:02:50]}  Nc4 {[%clk 0:02:47]} 12. Bc1 {[%clk 0:02:50]}  c5 {[%clk 0:02:45]} 13. d5 {[%clk 0:02:47]}  Ne8 {[%clk 0:02:35]} 14. h3 {[%clk 0:02:47]}  Bxf3 {[%clk 0:02:28]} 15. Qxf3 {[%clk 0:02:47]}  Bg5 {[%clk 0:02:29]} 16. b3 {[%clk 0:02:44]}  Bxc1 {[%clk 0:02:27]} 17. Rxc1 {[%clk 0:02:45]}  Nb6 {[%clk 0:02:26]} 18. Nd2 {[%clk 0:02:45]}  g6 {[%clk 0:02:25]} 19. Nf1 {[%clk 0:02:44]}  Ng7 {[%clk 0:02:23]} 20. Ne3 {[%clk 0:02:43]}  Rc8 {[%clk 0:02:13]} 21. a4 {[%clk 0:02:43]}  Qd7 {[%clk 0:01:55]} 22. axb5 {[%clk 0:02:42]}  axb5 {[%clk 0:01:54]} 23. Ra6 {[%clk 0:02:42]}  Rb8 {[%clk 0:01:50]} 24. Rca1 {[%clk 0:02:41]}  Rb7 {[%clk 0:01:42]} 25. Ng4 {[%clk 0:02:39]}  f5 {[%clk 0:01:33]} 26. exf5 {[%clk 0:02:38]}  gxf5 {[%clk 0:01:32]} 27. Nh6+ {[%clk 0:02:33]}  Kh8 {[%clk 0:01:31]} 28. g4 {[%clk 0:02:34]}  Qe7 {[%clk 0:01:08]} 29. Nxf5 {[%clk 0:02:32]}  Nxf5 {[%clk 0:01:08]} 30. Bxf5 {[%clk 0:02:33]}  Qg7 {[%clk 0:01:00]} 31. Qe4 {[%clk 0:02:31]}  c4 {[%clk 0:00:47]} 32. b4 {[%clk 0:02:31]}  Na4 {[%clk 0:00:47]} 33. Qf3 {[%clk 0:02:12]}  e4 {[%clk 0:00:46]} 34. Qxe4 {[%clk 0:02:01]}  Nxc3 {[%clk 0:00:46]} 35. Qe6 {[%clk 0:01:55]}  Rbf7 {[%clk 0:00:43]} 36. Ra8 {[%clk 0:01:48]}  Rxa8 {[%clk 0:00:19]} 37. Rxa8+ {[%clk 0:01:47]}  Rf8 {[%clk 0:00:20]} 38. Rxf8+ {[%clk 0:01:27]}  Qxf8 {[%clk 0:00:20]} 39. Kg2 {[%clk 0:01:28]}  Kg7 {[%clk 0:00:18]} 40. f4 {[%clk 0:01:27]}  Na2 {[%clk 0:00:11]} 41. Qe2 {[%clk 0:01:24]}  Nc3 {[%clk 0:00:06]} 42. Qd2 {[%clk 0:01:18]}  Qf6 {[%clk 0:00:05]} 43. g5 {[%clk 0:01:15]}  Qxf5 {[%clk 0:00:04]} 44. Qxc3+ {[%clk 0:01:15]}  Kg6 {[%clk 0:00:04]} 45. Kg3 {[%clk 0:01:07]}  Qxd5 {[%clk 0:00:03]} 46. Qf6+ {[%clk 0:01:03]}  Kh5 {[%clk 0:00:03]} 47. Qh6# {[%clk 0:01:04]} 1-0


[Site "https://www.chess.com"]

[Event "Titled Tuesday Blitz January 31 Late 2023"]
[White "Aung Thant Zin"]
[Black "Shubenkova, Veronika"]
[WhiteFideId "13000063"]
[BlackFideId "44124040"]
[WhiteElo "2268"]
[BlackElo "1960"]
[Result "0-1"]
[Round "08"]
[TimeControl "180+2"]
[Date "2023.01.31"]
[WhiteClock "0:00:03"]
[BlackClock "0:01:49"]

1. e4 {[%clk 0:02:57]}  c6 {[%clk 0:02:57]} 2. d4 {[%clk 0:02:41]}  d5 {[%clk 0:02:57]} 3. Nc3 {[%clk 0:02:41]}  dxe4 {[%clk 0:02:57]} 4. Nxe4 {[%clk 0:02:41]}  Bf5 {[%clk 0:02:57]} 5. Ng3 {[%clk 0:02:40]}  Bg6 {[%clk 0:02:58]} 6. h4 {[%clk 0:02:38]}  h6 {[%clk 0:02:58]} 7. Nf3 {[%clk 0:02:38]}  Nd7 {[%clk 0:02:57]} 8. Bd3 {[%clk 0:02:38]}  Bxd3 {[%clk 0:02:57]} 9. Qxd3 {[%clk 0:02:38]}  Ngf6 {[%clk 0:02:58]} 10. Bd2 {[%clk 0:02:35]}  e6 {[%clk 0:02:58]} 11. O-O-O {[%clk 0:02:35]}  Be7 {[%clk 0:02:58]} 12. Kb1 {[%clk 0:02:35]}  Qc7 {[%clk 0:02:58]} 13. Ne4 {[%clk 0:02:30]}  Nxe4 {[%clk 0:02:58]} 14. Qxe4 {[%clk 0:02:30]}  Nf6 {[%clk 0:02:55]} 15. Qe2 {[%clk 0:02:29]}  O-O-O {[%clk 0:02:55]} 16. c4 {[%clk 0:02:25]}  c5 {[%clk 0:02:54]} 17. Bc3 {[%clk 0:02:24]}  cxd4 {[%clk 0:02:47]} 18. Nxd4 {[%clk 0:02:23]}  a6 {[%clk 0:02:47]} 19. g3 {[%clk 0:02:08]}  Bc5 {[%clk 0:02:36]} 20. Nf3 {[%clk 0:02:07]}  Rxd1+ {[%clk 0:02:32]} 21. Rxd1 {[%clk 0:02:06]}  Rd8 {[%clk 0:02:32]} 22. Rxd8+ {[%clk 0:01:55]}  Qxd8 {[%clk 0:02:31]} 23. a3 {[%clk 0:01:55]}  Qb6 {[%clk 0:02:27]} 24. Ka2 {[%clk 0:01:54]}  Bxf2 {[%clk 0:02:26]} 25. Ne5 {[%clk 0:01:46]}  Bd4 {[%clk 0:02:22]} 26. Bxd4 {[%clk 0:01:42]}  Qxd4 {[%clk 0:02:22]} 27. Nxf7 {[%clk 0:01:43]}  Qd7 {[%clk 0:02:22]} 28. Ne5 {[%clk 0:01:42]}  Qc7 {[%clk 0:02:22]} 29. g4 {[%clk 0:01:37]}  Ne8 {[%clk 0:02:20]} 30. b3 {[%clk 0:01:18]}  Nd6 {[%clk 0:02:17]} 31. Nd3 {[%clk 0:01:14]}  Qf7 {[%clk 0:02:15]} 32. Nc5 {[%clk 0:01:12]}  e5 {[%clk 0:02:09]} 33. a4 {[%clk 0:00:45]}  Qf4 {[%clk 0:02:01]} 34. Ne6 {[%clk 0:00:37]}  Qg3 {[%clk 0:01:55]} 35. Nxg7 {[%clk 0:00:29]}  e4 {[%clk 0:01:54]} 36. Nf5 {[%clk 0:00:16]}  Nxf5 {[%clk 0:01:53]} 37. gxf5 {[%clk 0:00:16]}  e3 {[%clk 0:01:54]} 38. Qd3 {[%clk 0:00:07]}  Qf2+ {[%clk 0:01:49]} 39. Ka3 {[%clk 0:00:03]}  e2 {[%clk 0:01:49]} 0-1


[Site "https://www.chess.com"]

[Event "Titled Tuesday Blitz January 31 Late 2023"]
[White "Smith, Garrett L"]
[Black "Machidon, Cristi"]
[WhiteFideId "2024829"]
[BlackFideId "13904590"]
[WhiteElo "2047"]
[BlackElo "2301"]
[Result "0-1"]
[Round "08"]
[TimeControl "180+2"]
[Date "2023.01.31"]
[WhiteClock "0:00:41"]
[BlackClock "0:01:32"]

1. e4 {[%clk 0:03:00]}  c5 {[%clk 0:02:58]} 2. a3 {[%clk 0:03:01]}  g6 {[%clk 0:02:54]} 3. b4 {[%clk 0:03:01]}  Bg7 {[%clk 0:02:55]} 4. Nc3 {[%clk 0:03:01]}  d6 {[%clk 0:02:53]} 5. Nf3 {[%clk 0:02:58]}  Nc6 {[%clk 0:02:52]} 6. b5 {[%clk 0:02:55]}  Nd4 {[%clk 0:02:51]} 7. Bc4 {[%clk 0:02:49]}  e6 {[%clk 0:02:51]} 8. O-O {[%clk 0:02:48]}  Ne7 {[%clk 0:02:50]} 9. Re1 {[%clk 0:02:43]}  O-O {[%clk 0:02:49]} 10. Rb1 {[%clk 0:02:36]}  b6 {[%clk 0:02:46]} 11. Nxd4 {[%clk 0:02:30]}  cxd4 {[%clk 0:02:46]} 12. Ne2 {[%clk 0:02:29]}  Bb7 {[%clk 0:02:46]} 13. d3 {[%clk 0:02:27]}  d5 {[%clk 0:02:43]} 14. exd5 {[%clk 0:02:26]}  Nxd5 {[%clk 0:02:43]} 15. Bb2 {[%clk 0:02:22]}  e5 {[%clk 0:02:40]} 16. c3 {[%clk 0:02:13]}  Qg5 {[%clk 0:02:32]} 17. Bxd5 {[%clk 0:01:41]}  Bxd5 {[%clk 0:02:33]} 18. Ng3 {[%clk 0:01:41]}  dxc3 {[%clk 0:02:19]} 19. Bxc3 {[%clk 0:01:40]}  h5 {[%clk 0:02:18]} 20. Qd2 {[%clk 0:01:34]}  Qxd2 {[%clk 0:02:08]} 21. Bxd2 {[%clk 0:01:33]}  Rad8 {[%clk 0:02:08]} 22. Bc3 {[%clk 0:01:17]}  Rfe8 {[%clk 0:02:03]} 23. Ne4 {[%clk 0:01:13]}  Be6 {[%clk 0:01:54]} 24. Ng5 {[%clk 0:01:04]}  Bf5 {[%clk 0:01:53]} 25. Rbd1 {[%clk 0:00:57]}  Rxd3 {[%clk 0:01:52]} 26. Bb4 {[%clk 0:00:48]}  Red8 {[%clk 0:01:43]} 27. Rc1 {[%clk 0:00:44]}  Bh6 {[%clk 0:01:37]} 28. h4 {[%clk 0:00:44]}  f6 {[%clk 0:01:35]} 29. Rc7 {[%clk 0:00:41]}  fxg5 {[%clk 0:01:35]} 30. Be7 {[%clk 0:00:41]}  Rd1 {[%clk 0:01:32]} 0-1


[Site "https://www.chess.com"]

[Event "Titled Tuesday Blitz January 31 Late 2023"]
[White "Aarav Dengla"]
[Black "Szyszylo, Rafal"]
[WhiteFideId "45059756"]
[BlackFideId "1109626"]
[WhiteElo "2343"]
[BlackElo "2091"]
[Result "1-0"]
[Round "08"]
[TimeControl "180+2"]
[Date "2023.01.31"]
[WhiteClock "0:00:25"]
[BlackClock "0:00:02"]

1. e4 {[%clk 0:03:00]}  g6 {[%clk 0:02:57]} 2. d4 {[%clk 0:03:00]}  d6 {[%clk 0:02:56]} 3. Nf3 {[%clk 0:02:59]}  Nf6 {[%clk 0:02:56]} 4. Nc3 {[%clk 0:02:56]}  Bg7 {[%clk 0:02:55]} 5. Bc4 {[%clk 0:02:56]}  O-O {[%clk 0:02:43]} 6. O-O {[%clk 0:02:49]}  Bg4 {[%clk 0:02:41]} 7. h3 {[%clk 0:02:49]}  Bxf3 {[%clk 0:02:40]} 8. Qxf3 {[%clk 0:02:50]}  Nc6 {[%clk 0:02:39]} 9. Be3 {[%clk 0:02:47]}  e5 {[%clk 0:02:38]} 10. d5 {[%clk 0:02:38]}  Ne7 {[%clk 0:02:34]} 11. Qe2 {[%clk 0:02:38]}  Ne8 {[%clk 0:02:19]} 12. Qd2 {[%clk 0:02:37]}  f5 {[%clk 0:02:18]} 13. Bh6 {[%clk 0:02:36]}  Nf6 {[%clk 0:02:06]} 14. Bxg7 {[%clk 0:02:31]}  Kxg7 {[%clk 0:02:06]} 15. f4 {[%clk 0:02:28]}  Nd7 {[%clk 0:02:00]} 16. Rae1 {[%clk 0:02:16]}  exf4 {[%clk 0:01:57]} 17. Qd4+ {[%clk 0:02:07]}  Ne5 {[%clk 0:01:56]} 18. Ne2 {[%clk 0:02:08]}  g5 {[%clk 0:01:51]} 19. h4 {[%clk 0:02:07]}  h6 {[%clk 0:01:51]} 20. g3 {[%clk 0:02:05]}  fxg3 {[%clk 0:01:31]} 21. hxg5 {[%clk 0:01:40]}  hxg5 {[%clk 0:01:23]} 22. exf5 {[%clk 0:01:28]}  Nxf5 {[%clk 0:01:22]} 23. Qc3 {[%clk 0:01:23]}  Qd7 {[%clk 0:00:32]} 24. Nxg3 {[%clk 0:01:16]}  Nxg3 {[%clk 0:00:25]} 25. Qxg3 {[%clk 0:01:15]}  Rxf1+ {[%clk 0:00:15]} 26. Kxf1 {[%clk 0:00:59]}  Rf8+ {[%clk 0:00:14]} 27. Kg2 {[%clk 0:00:55]}  Qf5 {[%clk 0:00:14]} 28. Bd3 {[%clk 0:00:50]}  Qf3+ {[%clk 0:00:13]} 29. Qxf3 {[%clk 0:00:48]}  Rxf3 {[%clk 0:00:10]} 30. Rxe5 {[%clk 0:00:47]}  Rxd3 {[%clk 0:00:10]} 31. Re7+ {[%clk 0:00:45]}  Kf8 {[%clk 0:00:10]} 32. Rxc7 {[%clk 0:00:45]}  Rxd5 {[%clk 0:00:10]} 33. Kf3 {[%clk 0:00:40]}  Rb5 {[%clk 0:00:09]} 34. b3 {[%clk 0:00:40]}  a5 {[%clk 0:00:09]} 35. Kg4 {[%clk 0:00:40]}  Rc5 {[%clk 0:00:07]} 36. Rxb7 {[%clk 0:00:31]}  Rxc2 {[%clk 0:00:07]} 37. a4 {[%clk 0:00:31]}  Rc6 {[%clk 0:00:05]} 38. Kxg5 {[%clk 0:00:29]}  d5 {[%clk 0:00:04]} 39. Kf5 {[%clk 0:00:29]}  d4 {[%clk 0:00:03]} 40. Ke4 {[%clk 0:00:30]}  Rd6 {[%clk 0:00:01]} 41. Kd3 {[%clk 0:00:30]}  Rd5 {[%clk 0:00:02]} 42. Rb5 {[%clk 0:00:25]} 1-0


[Site "https://www.chess.com"]

[Event "Titled Tuesday Blitz January 31 Late 2023"]
[White "Kaplan, Avi Harrison"]
[Black "Gerbelli Neto, Eduardo"]
[WhiteFideId "30934559"]
[BlackFideId "2103281"]
[WhiteElo "2146"]
[BlackElo "2114"]
[Result "1/2-1/2"]
[Round "08"]
[TimeControl "180+2"]
[Date "2023.01.31"]
[WhiteClock "0:00:43"]
[BlackClock "0:00:15"]

1. d4 {[%clk 0:02:58]}  d5 {[%clk 0:02:59]} 2. Nf3 {[%clk 0:02:57]}  Nf6 {[%clk 0:02:59]} 3. g3 {[%clk 0:02:55]}  b5 {[%clk 0:02:58]} 4. Bg2 {[%clk 0:02:55]}  e6 {[%clk 0:02:58]} 5. O-O {[%clk 0:02:55]}  Bb7 {[%clk 0:02:59]} 6. Re1 {[%clk 0:02:55]}  c5 {[%clk 0:02:57]} 7. Ne5 {[%clk 0:02:55]}  Nbd7 {[%clk 0:02:56]} 8. b3 {[%clk 0:02:48]}  Nxe5 {[%clk 0:02:48]} 9. dxe5 {[%clk 0:02:49]}  Nd7 {[%clk 0:02:49]} 10. Bb2 {[%clk 0:02:43]}  Qb6 {[%clk 0:02:43]} 11. e4 {[%clk 0:02:29]}  d4 {[%clk 0:02:39]} 12. c3 {[%clk 0:02:23]}  Rd8 {[%clk 0:02:23]} 13. cxd4 {[%clk 0:02:10]}  cxd4 {[%clk 0:02:23]} 14. Nd2 {[%clk 0:02:10]}  Nxe5 {[%clk 0:02:15]} 15. Nf3 {[%clk 0:02:01]}  Nxf3+ {[%clk 0:02:08]} 16. Bxf3 {[%clk 0:02:02]}  e5 {[%clk 0:01:59]} 17. Rc1 {[%clk 0:01:57]}  Bb4 {[%clk 0:01:48]} 18. Re2 {[%clk 0:01:54]}  d3 {[%clk 0:01:32]} 19. Re3 {[%clk 0:01:48]}  d2 {[%clk 0:01:26]} 20. Rc2 {[%clk 0:01:44]}  O-O {[%clk 0:01:15]} 21. a3 {[%clk 0:01:42]}  Bc5 {[%clk 0:01:13]} 22. Re2 {[%clk 0:01:41]}  Rd3 {[%clk 0:00:53]} 23. Rexd2 {[%clk 0:01:39]}  Bxf2+ {[%clk 0:00:48]} 24. Kg2 {[%clk 0:01:32]}  Rxd2 {[%clk 0:00:44]} 25. Rxd2 {[%clk 0:01:31]}  Be3 {[%clk 0:00:34]} 26. Rd6 {[%clk 0:01:30]}  Qc5 {[%clk 0:00:30]} 27. b4 {[%clk 0:01:28]}  Qc4 {[%clk 0:00:24]} 28. Rd8 {[%clk 0:01:28]}  Bd4 {[%clk 0:00:20]} 29. Rxf8+ {[%clk 0:00:51]}  Kxf8 {[%clk 0:00:20]} 30. Qd2 {[%clk 0:00:52]}  f6 {[%clk 0:00:17]} 31. Kh3 {[%clk 0:00:44]}  Bc8+ {[%clk 0:00:16]} 32. Kg2 {[%clk 0:00:43]}  Bb7 {[%clk 0:00:17]} 33. Kh3 {[%clk 0:00:43]}  Qe6+ {[%clk 0:00:15]} 34. Kg2 {[%clk 0:00:43]}  Qc4 {[%clk 0:00:15]} 1/2-1/2


[Site "https://www.chess.com"]

[Event "Titled Tuesday Blitz January 31 Late 2023"]
[White "Mazurkiewicz, Michal"]
[Black "Tinmaz, Kerem"]
[WhiteFideId "1124943"]
[BlackFideId "44559151"]
[WhiteElo "2145"]
[BlackElo "2177"]
[Result "0-1"]
[Round "08"]
[TimeControl "180+2"]
[Date "2023.01.31"]
[WhiteClock "0:00:01"]
[BlackClock "0:00:02"]

1. e4 {[%clk 0:02:55]}  c6 {[%clk 0:02:58]} 2. d3 {[%clk 0:02:55]}  d5 {[%clk 0:02:58]} 3. Nd2 {[%clk 0:02:56]}  g6 {[%clk 0:02:55]} 4. Ngf3 {[%clk 0:02:56]}  Bg7 {[%clk 0:02:55]} 5. g3 {[%clk 0:02:56]}  Bg4 {[%clk 0:02:52]} 6. Bg2 {[%clk 0:02:56]}  e6 {[%clk 0:02:52]} 7. h3 {[%clk 0:02:56]}  Bxf3 {[%clk 0:02:52]} 8. Qxf3 {[%clk 0:02:57]}  Nd7 {[%clk 0:02:50]} 9. O-O {[%clk 0:02:56]}  Ne7 {[%clk 0:02:45]} 10. Qe2 {[%clk 0:02:57]}  O-O {[%clk 0:02:45]} 11. f4 {[%clk 0:02:54]}  Qb6+ {[%clk 0:02:44]} 12. Kh2 {[%clk 0:02:53]}  a5 {[%clk 0:02:30]} 13. e5 {[%clk 0:02:53]}  a4 {[%clk 0:02:26]} 14. Nf3 {[%clk 0:02:50]}  c5 {[%clk 0:02:23]} 15. c3 {[%clk 0:02:44]}  a3 {[%clk 0:02:12]} 16. b3 {[%clk 0:02:41]}  Qa5 {[%clk 0:02:12]} 17. Bd2 {[%clk 0:02:41]}  b5 {[%clk 0:02:13]} 18. d4 {[%clk 0:02:30]}  Qb6 {[%clk 0:01:27]} 19. Be3 {[%clk 0:02:28]}  b4 {[%clk 0:01:10]} 20. dxc5 {[%clk 0:02:19]}  Nxc5 {[%clk 0:01:09]} 21. Rac1 {[%clk 0:01:58]}  Rac8 {[%clk 0:01:02]} 22. Qf2 {[%clk 0:01:58]}  Qb5 {[%clk 0:00:53]} 23. c4 {[%clk 0:01:43]}  dxc4 {[%clk 0:00:44]} 24. Rxc4 {[%clk 0:01:44]}  Nd3 {[%clk 0:00:28]} 25. Qc2 {[%clk 0:01:43]}  Nb2 {[%clk 0:00:27]} 26. Rc5 {[%clk 0:01:34]}  Rxc5 {[%clk 0:00:24]} 27. Qxc5 {[%clk 0:01:35]}  Qxc5 {[%clk 0:00:15]} 28. Bxc5 {[%clk 0:01:36]}  Re8 {[%clk 0:00:15]} 29. Nd4 {[%clk 0:01:30]}  Nd5 {[%clk 0:00:13]} 30. Bxd5 {[%clk 0:01:29]}  exd5 {[%clk 0:00:13]} 31. Bxb4 {[%clk 0:01:30]}  f6 {[%clk 0:00:10]} 32. Nc6 {[%clk 0:01:05]}  fxe5 {[%clk 0:00:07]} 33. Nxe5 {[%clk 0:01:05]}  Bxe5 {[%clk 0:00:07]} 34. fxe5 {[%clk 0:01:06]}  Rxe5 {[%clk 0:00:05]} 35. Rf8+ {[%clk 0:01:03]}  Kg7 {[%clk 0:00:05]} 36. Bc3 {[%clk 0:01:02]}  Kxf8 {[%clk 0:00:04]} 37. Bxe5 {[%clk 0:01:02]}  Ke7 {[%clk 0:00:02]} 38. Kg2 {[%clk 0:00:55]}  Ke6 {[%clk 0:00:02]} 39. Bg7 {[%clk 0:00:52]}  Nd3 {[%clk 0:00:01]} 40. Bf8 {[%clk 0:00:46]}  Nc1 {[%clk 0:00:02]} 41. Bxa3 {[%clk 0:00:46]}  Nxa2 {[%clk 0:00:02]} 42. Kf3 {[%clk 0:00:44]}  Ke5 {[%clk 0:00:03]} 43. Bb2+ {[%clk 0:00:43]}  d4 {[%clk 0:00:03]} 44. Ke2 {[%clk 0:00:39]}  Ke4 {[%clk 0:00:04]} 45. Ba3 {[%clk 0:00:20]}  Nc3+ {[%clk 0:00:04]} 46. Kd2 {[%clk 0:00:20]}  Nd5 {[%clk 0:00:04]} 47. b4 {[%clk 0:00:18]}  Ne3 {[%clk 0:00:03]} 48. Bc1 {[%clk 0:00:16]}  Nf1+ {[%clk 0:00:03]} 49. Kc2 {[%clk 0:00:14]}  Nxg3 {[%clk 0:00:04]} 50. b5 {[%clk 0:00:14]}  Kd5 {[%clk 0:00:02]} 51. Kd3 {[%clk 0:00:15]}  Nf5 {[%clk 0:00:02]} 52. Ba3 {[%clk 0:00:13]}  h5 {[%clk 0:00:02]} 53. Bf8 {[%clk 0:00:12]}  g5 {[%clk 0:00:02]} 54. b6 {[%clk 0:00:07]}  Kc6 {[%clk 0:00:03]} 55. Bg7 {[%clk 0:00:06]}  Nxg7 {[%clk 0:00:02]} 56. Kxd4 {[%clk 0:00:06]}  Kxb6 {[%clk 0:00:02]} 57. Ke5 {[%clk 0:00:07]}  Kc7 {[%clk 0:00:01]} 58. Kf6 {[%clk 0:00:07]}  g4 {[%clk 0:00:02]} 59. Kg6 {[%clk 0:00:01]}  g3 {[%clk 0:00:02]} 0-1


[Site "https://www.chess.com"]

[Event "Titled Tuesday Blitz January 31 Late 2023"]
[White "Fiorito, Francisco"]
[Black "Nunez V, Gustavo Eduardo"]
[WhiteFideId "180165"]
[BlackFideId "4403690"]
[WhiteElo "2305"]
[BlackElo "2212"]
[Result "0-1"]
[Round "08"]
[TimeControl "180+2"]
[Date "2023.01.31"]
[WhiteClock "0:00:03"]
[BlackClock "0:00:07"]

1. e4 {[%clk 0:03:00]}  c5 {[%clk 0:03:00]} 2. Nf3 {[%clk 0:03:00]}  Nc6 {[%clk 0:03:00]} 3. Bb5 {[%clk 0:03:00]}  g6 {[%clk 0:03:00]} 4. O-O {[%clk 0:02:59]}  Bg7 {[%clk 0:03:00]} 5. c3 {[%clk 0:03:00]}  e5 {[%clk 0:03:00]} 6. d4 {[%clk 0:02:57]}  exd4 {[%clk 0:03:01]} 7. cxd4 {[%clk 0:02:55]}  Nxd4 {[%clk 0:02:56]} 8. Nxd4 {[%clk 0:02:54]}  Bxd4 {[%clk 0:02:57]} 9. Nc3 {[%clk 0:02:55]}  a6 {[%clk 0:02:55]} 10. Bc4 {[%clk 0:02:43]}  d6 {[%clk 0:02:55]} 11. Nd5 {[%clk 0:02:37]}  Be6 {[%clk 0:02:54]} 12. Kh1 {[%clk 0:02:29]}  b5 {[%clk 0:02:49]} 13. Be2 {[%clk 0:02:29]}  Ne7 {[%clk 0:02:46]} 14. Bg5 {[%clk 0:02:23]}  Bxd5 {[%clk 0:02:45]} 15. exd5 {[%clk 0:02:24]}  O-O {[%clk 0:02:41]} 16. Bg4 {[%clk 0:02:16]}  f6 {[%clk 0:02:34]} 17. Be6+ {[%clk 0:02:16]}  Kg7 {[%clk 0:02:33]} 18. Bf4 {[%clk 0:02:14]}  Be5 {[%clk 0:02:27]} 19. Bd2 {[%clk 0:02:09]}  h5 {[%clk 0:02:23]} 20. f4 {[%clk 0:02:08]}  Bxb2 {[%clk 0:02:22]} 21. Rb1 {[%clk 0:02:08]}  Bd4 {[%clk 0:02:21]} 22. f5 {[%clk 0:02:08]}  g5 {[%clk 0:02:20]} 23. Qxh5 {[%clk 0:02:07]}  Rh8 {[%clk 0:02:19]} 24. Qg4 {[%clk 0:02:07]}  Rh4 {[%clk 0:02:18]} 25. Qf3 {[%clk 0:02:00]}  Qh8 {[%clk 0:02:15]} 26. h3 {[%clk 0:02:00]}  Qh5 {[%clk 0:02:02]} 27. Qd3 {[%clk 0:01:51]}  Rh8 {[%clk 0:02:00]} 28. Rf3 {[%clk 0:01:50]}  g4 {[%clk 0:01:57]} 29. Rf4 {[%clk 0:01:24]}  gxh3 {[%clk 0:01:49]} 30. Qg3+ {[%clk 0:01:22]}  Kf8 {[%clk 0:01:46]} 31. Rxh4 {[%clk 0:01:03]}  Qxh4 {[%clk 0:01:45]} 32. Qxh4 {[%clk 0:01:03]}  hxg2+ {[%clk 0:01:45]} 33. Kxg2 {[%clk 0:01:03]}  Rxh4 {[%clk 0:01:45]} 34. Be1 {[%clk 0:00:53]}  Rf4 {[%clk 0:01:38]} 35. Bg3 {[%clk 0:00:53]}  Rxf5 {[%clk 0:01:27]} 36. Bxd6 {[%clk 0:00:39]}  Rg5+ {[%clk 0:01:25]} 37. Kf3 {[%clk 0:00:38]}  c4 {[%clk 0:00:58]} 38. Rh1 {[%clk 0:00:36]}  Be5 {[%clk 0:00:58]} 39. Bb4 {[%clk 0:00:31]}  c3 {[%clk 0:00:47]} 40. d6 {[%clk 0:00:26]}  Nc6 {[%clk 0:00:39]} 41. d7+ {[%clk 0:00:21]}  Kg7 {[%clk 0:00:37]} 42. Bd5 {[%clk 0:00:18]}  Nd8 {[%clk 0:00:20]} 43. Ba5 {[%clk 0:00:17]}  Bc7 {[%clk 0:00:14]} 44. Bxc7 {[%clk 0:00:14]}  Rxd5 {[%clk 0:00:14]} 45. Bxd8 {[%clk 0:00:14]}  Rxd7 {[%clk 0:00:15]} 46. Ba5 {[%clk 0:00:15]}  c2 {[%clk 0:00:15]} 47. Rc1 {[%clk 0:00:14]}  Rd3+ {[%clk 0:00:15]} 48. Ke2 {[%clk 0:00:13]}  Ra3 {[%clk 0:00:16]} 49. Bb4 {[%clk 0:00:11]}  Rxa2 {[%clk 0:00:16]} 50. Kd3 {[%clk 0:00:12]}  a5 {[%clk 0:00:17]} 51. Bc5 {[%clk 0:00:11]}  b4 {[%clk 0:00:14]} 52. Kc4 {[%clk 0:00:11]}  Rb2 {[%clk 0:00:12]} 53. Bd4 {[%clk 0:00:11]}  Ra2 {[%clk 0:00:11]} 54. Kb3 {[%clk 0:00:11]}  Ra3+ {[%clk 0:00:11]} 55. Kxc2 {[%clk 0:00:11]}  Rf3 {[%clk 0:00:11]} 56. Kd2 {[%clk 0:00:10]}  a4 {[%clk 0:00:11]} 57. Rc4 {[%clk 0:00:10]}  Rb3 {[%clk 0:00:09]} 58. Kc2 {[%clk 0:00:09]}  Kg6 {[%clk 0:00:08]} 59. Rc6 {[%clk 0:00:10]}  Kf5 {[%clk 0:00:07]} 60. Bxf6 {[%clk 0:00:10]}  Rh3 {[%clk 0:00:06]} 61. Be7 {[%clk 0:00:09]}  b3+ {[%clk 0:00:06]} 62. Kb2 {[%clk 0:00:09]}  Rh2+ {[%clk 0:00:07]} 63. Ka3 {[%clk 0:00:10]}  Ra2+ {[%clk 0:00:07]} 64. Kb4 {[%clk 0:00:08]}  b2 {[%clk 0:00:08]} 65. Rc5+ {[%clk 0:00:08]}  Ke6 {[%clk 0:00:07]} 66. Rc6+ {[%clk 0:00:02]}  Kxe7 {[%clk 0:00:07]} 67. Rc7+ {[%clk 0:00:03]}  Kd8 {[%clk 0:00:07]} 68. Rc1 {[%clk 0:00:03]}  bxc1=Q {[%clk 0:00:07]} 0-1


[Site "https://www.chess.com"]